fUSD/lending_fUSD_20260510
["ID","MTS","AMOUNT","RATE_DAILY","PERIOD"]
[421972210,1778387764000,-1200.0,9.041e-05,2]
[421972213,1778387766000,-837.76,9.179e-05,2]
[421972214,1778387766000,-164.814,9.179e-05,2]
[421972215,1778387767000,-242.56065846,9.179e-05,2]
[421972216,1778387822000,-319.97,9.212e-05,2]
[421972217,1778387828000,1320.482796,7.945e-05,2]
[421972221,1778387914000,-6940.29934155,9.365e-05,2]
[421972220,1778387914000,-317.14,9.354e-05,2]
[421972219,1778387914000,-242.56065845,9.284e-05,2]
[421972218,1778387914000,-2500.0,9.266e-05,2]
[421972223,1778387916000,-150.0,9.365e-05,2]
[421972225,1778387916000,-250.34120815,9.365e-05,2]
[421972224,1778387916000,-500.0,9.365e-05,2]
[421972222,1778387916000,-5530.28441534,9.365e-05,2]
[421972229,1778387916000,-586.65813281,9.365e-05,2]
[421972228,1778387916000,-500.0,9.365e-05,2]
[421972226,1778387916000,-626.32590894,9.365e-05,2]
[421972231,1778387916000,-10000.0,9.366e-05,2]
[421972227,1778387916000,-279.64241157,9.365e-05,2]
[421972230,1778387916000,-1576.74792319,9.366e-05,2]
[421972233,1778387917000,-10000.0,9.366e-05,2]
[421972232,1778387917000,-10000.0,9.366e-05,2]
[421972236,1778387918000,-10000.0,9.366e-05,2]
[421972235,1778387918000,-10000.0,9.366e-05,2]
[421972234,1778387918000,-10000.0,9.366e-05,2]
[421972238,1778387919000,-10000.0,9.366e-05,2]
[421972237,1778387919000,-10000.0,9.366e-05,2]
[421972241,1778387920000,-7147.8,9.366e-05,2]
[421972240,1778387920000,-2852.2,9.265e-05,2]
[421972239,1778387920000,-10000.0,9.366e-05,2]
[421972242,1778387921000,-10000.0,9.366e-05,2]
[421972243,1778387921000,-10000.0,9.366e-05,2]
[421972244,1778387922000,-10000.0,9.366e-05,2]
[421972245,1778387922000,-10000.0,9.366e-05,2]
[421972257,1778387923000,-5348.83912965,9.366e-05,2]
[421972246,1778387923000,-10000.0,9.366e-05,2]
[421972247,1778387923000,-500.0,9.365e-05,2]
[421972249,1778387923000,-500.0,9.365e-05,2]
[421972250,1778387923000,-151.16087035,9.365e-05,2]
[421972248,1778387923000,-500.0,9.365e-05,2]
[421972252,1778387923000,-500.0,9.365e-05,2]
[421972253,1778387923000,-500.0,9.365e-05,2]
[421972256,1778387923000,-500.0,9.365e-05,2]
[421972251,1778387923000,-500.0,9.365e-05,2]
[421972255,1778387923000,-500.0,9.365e-05,2]
[421972254,1778387923000,-500.0,9.365e-05,2]
[421972270,1778387924000,-10000.0,9.366e-05,2]
[421972269,1778387924000,-4550.0,9.366e-05,2]
[421972268,1778387924000,-500.0,9.365e-05,2]
[421972267,1778387924000,-500.0,9.365e-05,2]
[421972264,1778387924000,-500.0,9.365e-05,2]
[421972265,1778387924000,-500.0,9.365e-05,2]
[421972263,1778387924000,-500.0,9.365e-05,2]
[421972262,1778387924000,-500.0,9.365e-05,2]
[421972260,1778387924000,-500.0,9.365e-05,2]
[421972261,1778387924000,-450.0,9.365e-05,2]
[421972259,1778387924000,-500.0,9.365e-05,2]
[421972258,1778387924000,-500.0,9.365e-05,2]
[421972266,1778387924000,-500.0,9.365e-05,2]
[421972271,1778387925000,-10000.0,9.366e-05,2]
[421972273,1778387926000,-10000.0,9.366e-05,2]
[421972272,1778387926000,-10000.0,9.366e-05,2]
[421972276,1778387927000,-10000.0,9.366e-05,2]
[421972274,1778387927000,-10000.0,9.366e-05,2]
[421972275,1778387927000,-10000.0,9.366e-05,2]
[421972277,1778387928000,-10000.0,9.366e-05,2]
[421972280,1778387929000,-10000.0,9.366e-05,2]
[421972279,1778387929000,-10000.0,9.366e-05,2]
[421972278,1778387929000,-10000.0,9.366e-05,2]
[421972282,1778387930000,-10000.0,9.366e-05,2]
[421972281,1778387930000,-10000.0,9.366e-05,2]
[421972283,1778387931000,-10000.0,9.366e-05,2]
[421972285,1778387932000,-10000.0,9.366e-05,2]
[421972284,1778387932000,-10000.0,9.366e-05,2]
[421972286,1778387933000,-10000.0,9.366e-05,2]
[421972287,1778387934000,-10000.0,9.366e-05,2]
[421972292,1778388096000,-39.0,9.034e-05,2]
[421972291,1778388096000,-200.0,8.913e-05,2]
[421972293,1778388105000,150.88923077,0.0001,30]
[421972294,1778388165000,150.88923077,0.0001,30]
[421972295,1778388167000,354.84,0.00027397,120]
[421972296,1778388174000,-457.73305526,8.801e-05,2]
[421972297,1778388227000,881.00554444,8.502e-05,2]
[421972298,1778388227000,971.41445556,8.502e-05,2]
[421972299,1778388228000,2000.0,8.502e-05,2]
[421972300,1778388246000,1000.0,8.488e-05,2]
[421972302,1778388269000,467.335,0.000115,3]
[421972303,1778388294000,182.25,8.466e-05,2]
[421972304,1778388314000,405.0,0.00010189,5]
[421972305,1778388339000,-850.25412547,8.756e-05,2]
[421972306,1778388340000,-171.31269531,8.756e-05,2]
[421972311,1778388346000,3752.92152748,8.403e-05,2]
[421972308,1778388346000,4657.75323202,8.403e-05,2]
[421972310,1778388346000,4657.75323202,8.403e-05,2]
[421972309,1778388346000,4657.75323202,8.403e-05,2]
[421972307,1778388346000,504.08877646,8.403e-05,2]
[421972312,1778388359000,-23.72617922,8.756e-05,2]
[421972313,1778388359000,-254.02141056,8.8e-05,2]
[421972316,1778388366000,4657.75323202,8.412e-05,2]
[421972315,1778388366000,4657.75323202,8.412e-05,2]
[421972314,1778388366000,904.83170454,8.412e-05,2]
[421972317,1778388369000,-151.74412025,8.412e-05,2]
[421972318,1778388371000,-153.92,8.412e-05,2]
[421972319,1778388402000,169.25,8.289e-05,2]
[421972320,1778388404000,1436.18,8.312e-05,2]
[421972321,1778388453000,-300.0,8.411e-05,2]
[421972322,1778388453000,-250.0,8.412e-05,2]
[421972323,1778388453000,-42.74036996,8.412e-05,2]
[421972324,1778388517000,2320.31,8.206e-05,2]
[421972325,1778388521000,500.0,8.206e-05,2]
[421972329,1778388547000,-5185.81734121,8.412e-05,2]
[421972330,1778388547000,-35020.8473746,8.412e-05,2]
[421972328,1778388547000,-330.23102419,8.412e-05,2]
[421972326,1778388547000,-150.0,8.411e-05,2]
[421972327,1778388547000,-300.0,8.411e-05,2]
[421972335,1778388548000,-206.0,8.663e-05,2]
[421972332,1778388548000,-206.0,8.495e-05,2]
[421972331,1778388548000,-3209.6326254,8.412e-05,2]
[421972333,1778388548000,-206.0,8.579e-05,2]
[421972334,1778388548000,-330.23102419,8.622e-05,2]
[421972337,1778388548000,-945.97858944,8.8e-05,2]
[421972336,1778388548000,-206.0,8.748e-05,2]
[421972338,1778388548000,-18129.33694474,8.801e-05,2]
[421972339,1778388548000,-206.0,8.832e-05,2]
[421972344,1778388548000,-461.0,9.034e-05,2]
[421972340,1778388548000,-330.23102419,8.832e-05,2]
[421972345,1778388548000,-1995.02762613,9.083e-05,2]
[421972343,1778388548000,-206.0,9e-05,2]
[421972341,1778388548000,-1410.21726239,8.844e-05,2]
[421972342,1778388548000,-206.0,8.916e-05,2]
[421972349,1778388551000,-189.86502613,9.168e-05,2]
[421972347,1778388551000,-206.0,9.084e-05,2]
[421972348,1778388551000,-169.25,9.117e-05,2]
[421972346,1778388551000,-216.56237387,9.083e-05,2]
[421972371,1778388631000,-1513.0835568,9.252e-05,2]
[421972372,1778388631000,-457.7326337,9.252e-05,2]
[421972373,1778388631000,-2500.0,9.265e-05,2]
[421972377,1778388631000,-154.3164136,9.318e-05,2]
[421972375,1778388631000,-175.7329,9.266e-05,2]
[421972379,1778388631000,-500.0,9.364e-05,2]
[421972380,1778388631000,-500.0,9.364e-05,2]
[421972366,1778388631000,-1440424.53251955,9.154e-05,2]
[421972381,1778388631000,-345.0,9.364e-05,2]
[421972365,1778388631000,-1823.25268396,9.154e-05,2]
[421972363,1778388631000,-5880.0,9.154e-05,2]
[421972367,1778388631000,-167.07,9.181e-05,2]
[421972369,1778388631000,-250.0,9.252e-05,2]
[421972368,1778388631000,-255.0,9.252e-05,2]
[421972383,1778388631000,-575.14720357,9.364e-05,2]
[421972362,1778388631000,-3570.07363367,9.154e-05,2]
[421972364,1778388631000,-467.29685263,9.154e-05,2]
[421972361,1778388631000,-4754.23931019,9.154e-05,2]
[421972358,1778388631000,-300.0,9.153e-05,2]
[421972359,1778388631000,-1200.0,9.153e-05,2]
[421972370,1778388631000,-250.0,9.252e-05,2]
[421972374,1778388631000,-2398.4954,9.266e-05,2]
[421972360,1778388631000,-300.0,9.153e-05,2]
[421972376,1778388631000,-1369.0,9.266e-05,2]
[421972399,1778388631000,-226493.33197415,9.366e-05,2]
[421972401,1778388631000,-278.52586619,9.366e-05,2]
[421972400,1778388631000,-97404.08527409,9.366e-05,2]
[421972404,1778388631000,-1121.64785659,9.366e-05,2]
[421972403,1778388631000,-1075.43,9.366e-05,2]
[421972397,1778388631000,-150.0,9.365e-05,2]
[421972398,1778388631000,-150.0,9.365e-05,2]
[421972402,1778388631000,-316.11449079,9.366e-05,2]
[421972395,1778388631000,-150.0,9.365e-05,2]
[421972396,1778388631000,-150.0,9.365e-05,2]
[421972394,1778388631000,-260.66069296,9.365e-05,2]
[421972378,1778388631000,-500.0,9.364e-05,2]
[421972393,1778388631000,-500.0,9.365e-05,2]
[421972391,1778388631000,-500.0,9.365e-05,2]
[421972382,1778388631000,-467.65466279,9.364e-05,2]
[421972385,1778388631000,-500.0,9.364e-05,2]
[421972386,1778388631000,-377.182643,9.364e-05,2]
[421972384,1778388631000,-500.0,9.364e-05,2]
[421972388,1778388631000,-500.0,9.364e-05,2]
[421972390,1778388631000,-175.2388457,9.365e-05,2]
[421972389,1778388631000,-237275.7322728,9.365e-05,2]
[421972392,1778388631000,-288.42813626,9.365e-05,2]
[421972387,1778388631000,-500.0,9.364e-05,2]
[421972410,1778388637000,-380.52932165,9.366e-05,2]
[421972409,1778388637000,-27207.78442402,9.366e-05,2]
[421972465,1778388640000,-886.17,9.366e-05,2]
[421972466,1778388640000,-65.86004111,9.366e-05,2]
[421972474,1778388642000,-619.0,9.366e-05,2]
[421972477,1778388642000,-74.53823955,9.366e-05,2]
[421972479,1778388642000,-1441.83970756,9.366e-05,2]
[421972478,1778388642000,-12500.02,9.366e-05,2]
[421972476,1778388642000,-1014.21123152,9.366e-05,2]
[421972483,1778388645000,-5136.75584519,9.366e-05,2]
[421972482,1778388645000,-500.0,9.364e-05,2]
[421972484,1778388645000,-7322.05233335,9.366e-05,2]
[421972489,1778388645000,-767.9779999,9.366e-05,2]
[421972486,1778388645000,-555.2039331,9.366e-05,2]
[421972488,1778388645000,-20778.94131923,9.366e-05,2]
[421972485,1778388645000,-1000.0,9.366e-05,2]
[421972487,1778388645000,-3649.32681854,9.366e-05,2]
[421972490,1778388646000,-5184.44368243,9.366e-05,2]
[421972491,1778388646000,-3395.61601112,9.366e-05,2]
[421972495,1778388691000,1891.7,0.00027397,120]
[421972497,1778388917000,329.0,0.00010189,5]
[421972498,1778388920000,1106.17266018,0.00011999,3]
[421972502,1778388995000,-197.8108,8.6e-05,2]
[421972504,1778388995000,-47533.6892,8.601e-05,2]
[421972501,1778388995000,-162.64,8.527e-05,2]
[421972499,1778388995000,-1640.253,8.527e-05,2]
[421972500,1778388995000,-165.607,8.527e-05,2]
[421972503,1778388995000,-300.0,8.6e-05,2]
[421972505,1778389008000,-50000.0,8.601e-05,2]
[421972506,1778389019000,-50000.0,8.601e-05,2]
[421972507,1778389029000,709.38,4.362e-05,2]
[421972509,1778389029000,709.38,4.821e-05,2]
[421972510,1778389029000,709.38,5.051e-05,2]
[421972508,1778389029000,709.38,4.592e-05,2]
[421972514,1778389030000,709.38,5.969e-05,2]
[421972513,1778389030000,709.38,5.74e-05,2]
[421972512,1778389030000,709.38,5.51e-05,2]
[421972511,1778389030000,709.38,5.28e-05,2]
[421972519,1778389031000,709.38,7.117e-05,2]
[421972518,1778389031000,709.38,6.887e-05,2]
[421972517,1778389031000,709.38,6.658e-05,2]
[421972516,1778389031000,709.38,6.428e-05,2]
[421972515,1778389031000,709.38,6.199e-05,2]
[421972520,1778389032000,709.38,7.347e-05,2]
[421972521,1778389032000,709.38,7.576e-05,2]
[421972523,1778389032000,709.38,8.035e-05,2]
[421972524,1778389032000,709.38,8.265e-05,2]
[421972522,1778389032000,709.38,7.806e-05,2]
[421972526,1778389056000,-300.0,8.6e-05,2]
[421972525,1778389056000,-709.38,8.495e-05,2]
[421972527,1778389056000,-150.0,8.6e-05,2]
[421972529,1778389056000,-500.0,8.6e-05,2]
[421972528,1778389056000,-633.12665658,8.6e-05,2]
[421972530,1778389056000,-500.0,8.6e-05,2]
[421972531,1778389056000,-500.0,8.6e-05,2]
[421972533,1778389056000,-500.0,8.6e-05,2]
[421972532,1778389056000,-500.0,8.6e-05,2]
[421972534,1778389056000,-500.0,8.6e-05,2]
[421972535,1778389056000,-500.0,8.6e-05,2]
[421972536,1778389056000,-500.0,8.6e-05,2]
[421972539,1778389056000,-500.0,8.6e-05,2]
[421972538,1778389056000,-500.0,8.6e-05,2]
[421972537,1778389056000,-500.0,8.6e-05,2]
[421972549,1778389056000,-500.0,8.6e-05,2]
[421972550,1778389056000,-500.0,8.6e-05,2]
[421972548,1778389056000,-500.0,8.6e-05,2]
[421972546,1778389056000,-500.0,8.6e-05,2]
[421972547,1778389056000,-500.0,8.6e-05,2]
[421972545,1778389056000,-500.0,8.6e-05,2]
[421972543,1778389056000,-500.0,8.6e-05,2]
[421972540,1778389056000,-500.0,8.6e-05,2]
[421972542,1778389056000,-500.0,8.6e-05,2]
[421972541,1778389056000,-500.0,8.6e-05,2]
[421972544,1778389056000,-500.0,8.6e-05,2]
[421972558,1778389057000,-500.0,8.6e-05,2]
[421972561,1778389057000,-500.0,8.6e-05,2]
[421972560,1778389057000,-500.0,8.6e-05,2]
[421972559,1778389057000,-500.0,8.6e-05,2]
[421972556,1778389057000,-500.0,8.6e-05,2]
[421972551,1778389057000,-297.34206996,8.6e-05,2]
[421972555,1778389057000,-500.0,8.6e-05,2]
[421972562,1778389057000,-500.0,8.6e-05,2]
[421972554,1778389057000,-500.0,8.6e-05,2]
[421972552,1778389057000,-500.0,8.6e-05,2]
[421972557,1778389057000,-500.0,8.6e-05,2]
[421972563,1778389057000,-500.0,8.6e-05,2]
[421972553,1778389057000,-500.0,8.6e-05,2]
[421972564,1778389057000,-500.0,8.6e-05,2]
[421972575,1778389057000,-500.0,8.6e-05,2]
[421972576,1778389057000,-500.0,8.6e-05,2]
[421972577,1778389057000,-24660.15127346,8.601e-05,2]
[421972574,1778389057000,-500.0,8.6e-05,2]
[421972571,1778389057000,-500.0,8.6e-05,2]
[421972572,1778389057000,-500.0,8.6e-05,2]
[421972565,1778389057000,-500.0,8.6e-05,2]
[421972570,1778389057000,-500.0,8.6e-05,2]
[421972569,1778389057000,-500.0,8.6e-05,2]
[421972567,1778389057000,-500.0,8.6e-05,2]
[421972568,1778389057000,-250.0,8.6e-05,2]
[421972566,1778389057000,-500.0,8.6e-05,2]
[421972573,1778389057000,-500.0,8.6e-05,2]
[421972578,1778389104000,-300.0,8.6e-05,2]
[421972579,1778389104000,-250.0,8.601e-05,2]
[421972581,1778389104000,-150.0,8.686e-05,2]
[421972580,1778389104000,-14083.98852654,8.601e-05,2]
[421972582,1778389104000,-1200.0,8.7e-05,2]
[421972585,1778389104000,-19666.01147346,8.701e-05,2]
[421972584,1778389104000,-193.0,8.7e-05,2]
[421972583,1778389104000,-157.0,8.7e-05,2]
[421972586,1778389123000,-34000.0,8.701e-05,2]
[421972592,1778389227000,-532.46248508,8.7e-05,2]
[421972587,1778389227000,-978.96752023,8.691e-05,2]
[421972589,1778389227000,-300.0,8.7e-05,2]
[421972588,1778389227000,-1200.0,8.7e-05,2]
[421972590,1778389227000,-300.0,8.7e-05,2]
[421972591,1778389227000,-150.0,8.7e-05,2]
[421972594,1778389227000,-500.0,8.7e-05,2]
[421972596,1778389227000,-500.0,8.7e-05,2]
[421972595,1778389227000,-500.0,8.7e-05,2]
[421972597,1778389227000,-604.73420699,8.7e-05,2]
[421972598,1778389227000,-223.5792007,8.7e-05,2]
[421972593,1778389227000,-500.0,8.7e-05,2]
[421972599,1778389227000,-28710.256587,8.701e-05,2]
[421972601,1778389351000,152.0,0.00014547,7]
[421972602,1778389352000,152.0,0.00010014,30]
[421972603,1778389354000,4015.52405276,8e-05,2]
[421972604,1778389421000,160.1,6.904e-05,2]
[421972605,1778389457000,-150.0,8.5e-05,2]
[421972607,1778389458000,-289.41491189,8.5e-05,2]
[421972608,1778389458000,-40147.58508811,8.501e-05,2]
[421972606,1778389458000,-300.0,8.5e-05,2]
[421972609,1778389513000,193.4506483,7.888e-05,2]
[421972610,1778389520000,258.0,9.522e-05,5]
[421972611,1778389527000,-300.0,8.5e-05,2]
[421972612,1778389527000,-300.0,8.5e-05,2]
[421972613,1778389527000,-300.0,8.5e-05,2]
[421972614,1778389527000,-1200.0,8.5e-05,2]
[421972616,1778389527000,-543.15650961,8.501e-05,2]
[421972617,1778389527000,-58935.84349039,8.501e-05,2]
[421972615,1778389527000,-250.0,8.501e-05,2]
[421972620,1778389619000,200.0,7.896e-05,2]
[421972623,1778389629000,-51.76391904,8.5e-05,2]
[421972621,1778389629000,-300.0,8.499e-05,2]
[421972622,1778389629000,-150.0,8.5e-05,2]
[421972624,1778389630000,-249.01023356,8.5e-05,2]
[421972625,1778389634000,-178.92319432,8.5e-05,2]
[421972626,1778389636000,-153.01446323,8.5e-05,2]
[421972627,1778389643000,8019.43,7.866e-05,2]
[421972628,1778389649000,1778.93,7.874e-05,2]
[421972642,1778389750000,-500.0,8.5e-05,2]
[421972644,1778389750000,-500.0,8.5e-05,2]
[421972643,1778389750000,-500.0,8.5e-05,2]
[421972638,1778389750000,-500.0,8.5e-05,2]
[421972641,1778389750000,-500.0,8.5e-05,2]
[421972639,1778389750000,-500.0,8.5e-05,2]
[421972640,1778389750000,-500.0,8.5e-05,2]
[421972632,1778389750000,-150.0,8.5e-05,2]
[421972636,1778389750000,-500.0,8.5e-05,2]
[421972635,1778389750000,-500.0,8.5e-05,2]
[421972634,1778389750000,-500.0,8.5e-05,2]
[421972633,1778389750000,-500.0,8.5e-05,2]
[421972645,1778389750000,-500.0,8.5e-05,2]
[421972631,1778389750000,-300.0,8.5e-05,2]
[421972629,1778389750000,-1374.69990404,8.5e-05,2]
[421972630,1778389750000,-1158.87283292,8.5e-05,2]
[421972637,1778389750000,-500.0,8.5e-05,2]
[421972649,1778389750000,-500.0,8.5e-05,2]
[421972652,1778389750000,-500.0,8.5e-05,2]
[421972646,1778389750000,-500.0,8.5e-05,2]
[421972664,1778389750000,-500.0,8.5e-05,2]
[421972665,1778389750000,-500.0,8.5e-05,2]
[421972663,1778389750000,-500.0,8.5e-05,2]
[421972662,1778389750000,-500.0,8.5e-05,2]
[421972661,1778389750000,-500.0,8.5e-05,2]
[421972659,1778389750000,-500.0,8.5e-05,2]
[421972660,1778389750000,-500.0,8.5e-05,2]
[421972647,1778389750000,-500.0,8.5e-05,2]
[421972658,1778389750000,-500.0,8.5e-05,2]
[421972657,1778389750000,-500.0,8.5e-05,2]
[421972655,1778389750000,-500.0,8.5e-05,2]
[421972654,1778389750000,-500.0,8.5e-05,2]
[421972651,1778389750000,-500.0,8.5e-05,2]
[421972653,1778389750000,-500.0,8.5e-05,2]
[421972650,1778389750000,-500.0,8.5e-05,2]
[421972648,1778389750000,-500.0,8.5e-05,2]
[421972656,1778389750000,-500.0,8.5e-05,2]
[421972666,1778389751000,-20201.96532304,8.501e-05,2]
[421972667,1778389758000,-39757.95908,8.501e-05,2]
[421972668,1778389758000,-5249.56400438,8.501e-05,2]
[421972669,1778389762000,-769.13488965,8.5e-05,2]
[421972671,1778389762000,-769.13488965,8.5e-05,2]
[421972670,1778389762000,-769.13488965,8.5e-05,2]
[421972672,1778389762000,-769.13488965,8.5e-05,2]
[421972674,1778389762000,-769.13488965,8.5e-05,2]
[421972678,1778389762000,-769.13488965,8.5e-05,2]
[421972675,1778389762000,-769.13488965,8.5e-05,2]
[421972676,1778389762000,-769.13488965,8.5e-05,2]
[421972679,1778389762000,-675.64585677,8.5e-05,2]
[421972677,1778389762000,-769.13488965,8.5e-05,2]
[421972673,1778389762000,-769.13488965,8.5e-05,2]
[421972681,1778389764000,-725.78179432,8.5e-05,2]
[421972680,1778389764000,-93.48903288,8.5e-05,2]
[421972693,1778389765000,-769.13488965,8.5e-05,2]
[421972692,1778389765000,-769.13488965,8.5e-05,2]
[421972691,1778389765000,-769.13488965,8.5e-05,2]
[421972690,1778389765000,-769.13488965,8.5e-05,2]
[421972689,1778389765000,-769.13488965,8.5e-05,2]
[421972688,1778389765000,-769.13488965,8.5e-05,2]
[421972686,1778389765000,-769.13488965,8.5e-05,2]
[421972685,1778389765000,-769.13488965,8.5e-05,2]
[421972683,1778389765000,-769.13488965,8.5e-05,2]
[421972684,1778389765000,-769.13488965,8.5e-05,2]
[421972682,1778389765000,-43.35309533,8.5e-05,2]
[421972695,1778389765000,-769.13488965,8.5e-05,2]
[421972687,1778389765000,-769.13488965,8.5e-05,2]
[421972694,1778389765000,-769.13488965,8.5e-05,2]
[421972696,1778389765000,-769.13488965,8.5e-05,2]
[421972710,1778389765000,-66958.76264,8.501e-05,2]
[421972709,1778389765000,-36759.81531377,8.501e-05,2]
[421972697,1778389765000,-769.13488965,8.5e-05,2]
[421972707,1778389765000,-769.13488965,8.5e-05,2]
[421972708,1778389765000,-769.13488965,8.5e-05,2]
[421972706,1778389765000,-769.13488965,8.5e-05,2]
[421972704,1778389765000,-769.13488965,8.5e-05,2]
[421972705,1778389765000,-769.13488965,8.5e-05,2]
[421972702,1778389765000,-769.13488965,8.5e-05,2]
[421972700,1778389765000,-769.13488965,8.5e-05,2]
[421972701,1778389765000,-769.13488965,8.5e-05,2]
[421972698,1778389765000,-769.13488965,8.5e-05,2]
[421972699,1778389765000,-769.13488965,8.5e-05,2]
[421972703,1778389765000,-769.13488965,8.5e-05,2]
[421972716,1778389768000,-210.01842109,8.594e-05,2]
[421972718,1778389768000,-500.0,8.594e-05,2]
[421972719,1778389768000,-251.1414974,8.594e-05,2]
[421972717,1778389768000,-500.0,8.594e-05,2]
[421972720,1778389768000,-500.0,8.594e-05,2]
[421972715,1778389768000,-150.0,8.584e-05,2]
[421972714,1778389768000,-152.0,8.515e-05,2]
[421972711,1778389768000,-61373.86366031,8.501e-05,2]
[421972712,1778389768000,-406.9769,8.501e-05,2]
[421972713,1778389768000,-500.0,8.501e-05,2]
[421972722,1778389768000,-1082.9753,8.601e-05,2]
[421972726,1778389768000,-150.0,8.669e-05,2]
[421972724,1778389768000,-1173.31,8.638e-05,2]
[421972734,1778389768000,-4715.13590302,8.79e-05,2]
[421972733,1778389768000,-500.0,8.775e-05,2]
[421972731,1778389768000,-150.0,8.754e-05,2]
[421972730,1778389768000,-2000.0,8.744e-05,2]
[421972732,1778389768000,-602.01,8.758e-05,2]
[421972728,1778389768000,-4640.41,8.718e-05,2]
[421972727,1778389768000,-1544.95,8.715e-05,2]
[421972725,1778389768000,-22111.9918857,8.664e-05,2]
[421972723,1778389768000,-500.0,8.615e-05,2]
[421972729,1778389768000,-709.38,8.724e-05,2]
[421972721,1778389768000,-76851.927209,8.595e-05,2]
[421972736,1778389773000,777.84,4.776e-05,2]
[421972735,1778389773000,777.84,4.537e-05,2]
[421972741,1778389774000,777.84,5.97e-05,2]
[421972740,1778389774000,777.84,5.731e-05,2]
[421972739,1778389774000,777.84,5.492e-05,2]
[421972738,1778389774000,777.84,5.253e-05,2]
[421972737,1778389774000,777.84,5.014e-05,2]
[421972742,1778389775000,777.84,6.208e-05,2]
[421972743,1778389775000,777.84,6.447e-05,2]
[421972745,1778389775000,777.84,6.925e-05,2]
[421972746,1778389775000,777.84,7.164e-05,2]
[421972744,1778389775000,777.84,6.686e-05,2]
[421972750,1778389776000,777.84,8.119e-05,2]
[421972749,1778389776000,777.84,7.88e-05,2]
[421972748,1778389776000,777.84,7.641e-05,2]
[421972747,1778389776000,777.84,7.402e-05,2]
[421972751,1778389777000,777.84,8.358e-05,2]
[421972766,1778389831000,-150.0,8.839e-05,2]
[421972763,1778389831000,-465.599956,8.79e-05,2]
[421972764,1778389831000,-152.98,8.796e-05,2]
[421972762,1778389831000,-682.85414098,8.79e-05,2]
[421972760,1778389831000,-263.39072739,8.5e-05,2]
[421972761,1778389831000,-777.84,8.596e-05,2]
[421972756,1778389831000,-19596.74868014,8.5e-05,2]
[421972758,1778389831000,-3308.77139384,8.5e-05,2]
[421972753,1778389831000,-348.50366075,8.499e-05,2]
[421972757,1778389831000,-73244.60936388,8.5e-05,2]
[421972755,1778389831000,-300.0,8.499e-05,2]
[421972754,1778389831000,-851.49633925,8.499e-05,2]
[421972768,1778389831000,-150.0,8.924e-05,2]
[421972759,1778389831000,-1877.67502266,8.5e-05,2]
[421972770,1778389831000,-150.0,9.009e-05,2]
[421972772,1778389831000,-713.600044,9.074e-05,2]
[421972767,1778389831000,-343.98,8.85e-05,2]
[421972775,1778389831000,-500.0,9.096e-05,2]
[421972781,1778389831000,-287.0,9.179e-05,2]
[421972780,1778389831000,-186.02672599,9.108e-05,2]
[421972776,1778389831000,-110.590044,9.108e-05,2]
[421972783,1778389831000,-500.0,9.349e-05,2]
[421972778,1778389831000,-374.23899336,9.108e-05,2]
[421972769,1778389831000,-2000.0,8.999e-05,2]
[421972777,1778389831000,-118.17877966,9.108e-05,2]
[421972774,1778389831000,-150.0,9.094e-05,2]
[421972773,1778389831000,-64.239956,9.074e-05,2]
[421972771,1778389831000,-629.0,9.041e-05,2]
[421972765,1778389831000,-777.84,8.835e-05,2]
[421972785,1778389831000,-956.24706634,9.349e-05,2]
[421972779,1778389831000,-353.8945,9.108e-05,2]
[421972800,1778389837000,-420.0,9.349e-05,2]
[421972799,1778389837000,-723.75293366,9.349e-05,2]
[421972803,1778389837000,-151.0,9.363e-05,2]
[421972801,1778389837000,-255.0,9.35e-05,2]
[421972804,1778389837000,-151.0,9.381e-05,2]
[421972802,1778389837000,-1207.34495597,9.35e-05,2]
[421972806,1778389837000,-205.0,9.8e-05,2]
[421972809,1778389837000,-1454.27,9.879e-05,2]
[421972808,1778389837000,-602.01,9.853e-05,2]
[421972811,1778389837000,-169.25,9.946e-05,2]
[421972810,1778389837000,-794.39,9.879e-05,2]
[421972805,1778389837000,-167.48,9.63e-05,2]
[421972807,1778389837000,-249.22268304,9.852e-05,2]
[421972828,1778389838000,-1000.0,0.000104,2]
[421972825,1778389838000,-7305.48089027,0.00010384,2]
[421972827,1778389838000,-1000.0,0.000104,2]